Cogmind - Beta 13 @@@ ROGUE MODE // 2024.03.31 @ 07:26:37 Player: catpottery Result: Destroyed by G-47 Trooper with Particle Gun Performance ------------- Evolutions (1) 500 Regions Visited (5) 1000 Robots Destroyed (42) 210 Value Destroyed (986) 986 Prototype IDs (3) 60 Alien Tech Used (0) 0 Bonus (0) 0 TOTAL SCORE: 2756 Bonus ------- None Cogmind --------- Core Integrity 0/400 Matter 295/300 Energy 100/100 System Corruption 0% Temperature Cool (9) Movement Flying (37) Location -8/Mines Parts ------- > --- POWER (3) -------- (None) > --- PROPULSION (2) --- Improved Flight Unit Improved Flight Unit > --- UTILITY (2) ------ (None) > --- WEAPON (2) ------- (None) > --- INVENTORY (5) ---- Improved Flight Unit Datajack Peak State ------------ > --- POWER ------------ Ion Engine Light Ion Engine Improved Ion Engine > --- PROPULSION ------- Improved Flight Unit Improved Flight Unit > --- UTILITY ---------- (None) > --- WEAPON ----------- Advanced Beam Cannon Advanced Beam Cannon > --- INVENTORY -------- Improved Flight Unit Improved Flight Unit Improved Flight Unit Datajack [Rating: 17] Favorites ----------- Power Ion Engine Engine Ion Engine Propulsion Aluminum Leg Treads Light Treads Leg Aluminum Leg Flight Unit Improved Flight Unit Utility Small Storage Unit Device Sensor Array Storage Small Storage Unit Processor Signal Interpreter Hackware Hacking Suite Weapon Advanced Beam Cannon Energy Gun Beam Rifle Energy Cannon Advanced Beam Cannon Ballistic Gun Assault Rifle Build | -11 -10 -9 -9 -9 -8 ------- Run | Yrd Mat Mat Min Exi Min Slots Evolved 2 | . . 2 . . . Power 2 | . . 2 . . . Propulsion . | . . . . . . Utility . | . . . . . . Weapon . | . . . . . . Parts Attached 36 | 6 2 26 2 . . Power 9 | 1 . 7 1 . . Engine 9 | 1 . 7 1 . . Core . | . . . . . . Reactor . | . . . . . . Propulsion 11 | 2 . 8 1 . . Treads 2 | . . 2 . . . Leg 4 | 2 . 2 . . . Wheel . | . . . . . . Hover . | . . . . . . Flight 5 | . . 4 1 . . Utility 8 | 2 1 5 . . . Device 2 | . . 2 . . . Storage 4 | 2 . 2 . . . Processor 1 | . 1 . . . . Hackware 1 | . . 1 . . . Protection . | . . . . . . Artifact . | . . . . . . Weapon 8 | 1 1 6 . . . Energy Gun 4 | 1 . 3 . . . Energy Cannon 3 | . . 3 . . . Ballistic Gun 1 | . 1 . . . . Ballistic Cannon . | . . . . . . Launcher . | . . . . . . Special Weapon . | . . . . . . Impact Weapon . | . . . . . . Slashing Weapon . | . . . . . . Piercing Weapon . | . . . . . . Special Melee Weapon . | . . . . . . Unidentified Prototypes 3 | . . 3 . . . Parts Lost 15 | . 1 9 2 . 3 Power 7 | . . 4 2 . 1 Propulsion 2 | . . 2 . . . Utility 1 | . . 1 . . . Weapon 5 | . 1 2 . . 2 Highest Loss Streak 3 | . 1 3 2 . 2 To Critical Strikes . | . . . . . . Average Slot Usage (%) 72 | . 91 73 68 55 31 Engine 18 | . 14 18 24 11 . Treads 1 | . . 3 . . . Leg 8 | . 28 9 . . . Flight 8 | . . 2 21 22 22 Device 3 | . . 7 . . . Storage 4 | . 24 1 . . . Processor 3 | . 3 5 . . . Hackware 1 | . . 3 . . . Energy Gun 7 | . 12 10 . . . Energy Cannon 10 | . . 6 22 22 9 Ballistic Gun 3 | . 7 4 . . . Naked Turns . | . . . . . . Heaviest Build 95 | 17 19 95 23 15 8 Greatest Support 40 | 20 20 40 10 10 10 Greatest Overweight (x) 30 | 1 . 30 3 1 . Average Overweight (x) . | . . . 1 1 . Largest Inventory Capacity 25 | 8 8 25 5 5 5 Average Capacity 6 | 7 8 7 5 5 5 Most Carried 5 | 3 3 5 4 2 2 Average Carried 2 | . 1 3 2 2 2 Final Capacity 8 | 8 8 5 5 5 5 Final Carried 4 | . 2 4 2 2 2 Class Distribution -------------------- 80% | Mutant 19% | Scavenger-Mutant Dominant Class ---------------- Mutant | -10/Materials Mutant | -9/Materials Mutant | -9/Mines Mutant | -9/Exiles Mutant | -8/Mines Resources | -11 -10 -9 -9 -9 -8 ----------- Run | Yrd Mat Mat Min Exi Min Matter Collected 769 | 252 70 287 148 . 12 Remotely . | . . . . . . Salvage Created 1641 | 74 280 962 224 . 101 Parts 93 | 1 18 64 7 . 3 Haulers Intercepted 3 | . . 3 . . . Recyclers Shooed 4 | . . 4 . . . Parts Field Recycled . | . . . . . . Retrieved Matter . | . . . . . . Parts Self-Destructed . | . . . . . . Prevented . | . . . . . . Kills | -11 -10 -9 -9 -9 -8 ------- Run | Yrd Mat Mat Min Exi Min Combat Hostiles Destroyed 28 | . 6 17 3 . 2 Guns 15 | . 6 9 . . . Cannons 12 | . . 7 3 . 2 AOE 1 | . . 1 . . . Classes Destroyed 9 | 1 2 6 . . . Worker 2 | . . 2 . . . Hauler 3 | . . 3 . . . Recycler 4 | 1 . 2 1 . . Operator 3 | . 1 2 . . . Watcher 2 | . . 2 . . . Swarmer 8 | . . 8 . . . Grunt 14 | . 6 4 3 . 1 Brawler 2 | . . 1 . . 1 Sentry 4 | . . 4 . . . Best Kill Streak 7 | 1 3 7 2 . 2 Combat Bots Only 5 | . 3 5 2 . 2 Max Kills in Single Turn 2 | 1 1 2 1 . 1 Gunslinging . | . . . . . . Exploded 1 | . . 1 . . . Melee . | . . . . . . Uniques/NPCs Destroyed . | . . . . . . Combat | -11 -10 -9 -9 -9 -8 -------- Run | Yrd Mat Mat Min Exi Min Hostile Shots Fired 207 | . 35 115 34 . 23 Missed 49 | . 8 26 8 . 7 Damage Taken 1914 | 28 295 977 330 . 284 Core 489 | 14 69 236 10 . 160 Absorbed by Shields . | . . . . . . Core Remaining (%) 80 | 94 66 . . . . Volleys Fired 117 | 2 28 65 13 . 9 Largest 2 | 1 2 2 2 . 2 Hottest 136 | 40 60 136 136 . 136 Shots Fired 195 | 2 38 119 25 . 11 Gun 120 | 2 38 80 . . . Cannon 75 | . . 39 25 . 11 Launcher . | . . . . . . Special . | . . . . . . Kinetic 37 | . 17 20 . . . Thermal 118 | . . 82 25 . 11 Explosive . | . . . . . . Electromagnetic 40 | 2 21 17 . . . Robot Hit Streak 9 | 2 5 8 9 . 2 Robot Miss Streak 12 | . 2 12 3 . 4 Penetration Max . | . . . . . . Secondary Targets 1 | . . 1 . . . Max Gunslinging Chain 1 | . . 1 . . . Shots Hit Robots 125 | 2 23 82 13 . 5 Core Hits 69 | 1 11 45 5 . 7 Critical Kills . | . . . . . . Critical Parts Destroyed . | . . . . . . Critical Strikes . | . . . . . . Melee Attacks . | . . . . . . Impact . | . . . . . . Slashing . | . . . . . . Piercing . | . . . . . . Sneak Attacks . | . . . . . . Combat Hostiles . | . . . . . . Follow-up Attacks . | . . . . . . Damage Inflicted 2284 | 63 339 1444 306 . 132 Guns 1089 | 28 339 722 . . . Cannons 1004 | . . 575 306 . 123 Explosions 180 | 33 . 147 . . . Melee . | . . . . . . Ramming 11 | 2 . . . . 9 Kinetic 327 | . 149 178 . . . Thermal 1507 | 33 . 1045 306 . 123 Explosive . | . . . . . . Electromagnetic 439 | 28 190 221 . . . Impact . | . . . . . . Slashing . | . . . . . . Piercing . | . . . . . . Highest Corruption . | . . . . . . Average Corruption . | . . . . . . Corruption Purged . | . . . . . . Corruption Blocked . | . . . . . . Overload Shots . | . . . . . . Overflow Damage . | . . . . . . Projectiles . | . . . . . . Explosions . | . . . . . . Melee . | . . . . . . Knockbacks . | . . . . . . Impact . | . . . . . . Kinetic . | . . . . . . Secondary . | . . . . . . Self-Inflicted Damage 61 | 29 . 29 . . 3 Shots 2 | 1 . 1 . . . Rammed 5 | . . . . . 5 Targets Rammed 6 | 1 . . . . 5 Kicked 1 | 1 . . . . . Crushed . | . . . . . . Highest Temperature 589 | 12 66 465 589 . 213 Average Temperature 129 | 12 27 108 243 . 79 Received Heat Transfer 762 | . 162 234 210 . 156 Effects 26 | . . 6 20 . . Shutdowns 9 | . . 1 8 . . Energy Bleed 5 | . . 2 3 . . Interference 6 | . . 2 4 . . Matter Decay 3 | . . . 3 . . Short Circuit 2 | . . 1 1 . . Damage (minor) 1 | . . . 1 . . Siege Activations . | . . . . . . Robots Corrupted . | . . . . . . Combat Hostiles . | . . . . . . Parts Fried . | . . . . . . Impact Corruptions . | . . . . . . Robots Melted . | . . . . . . Combat Hostiles . | . . . . . . Parts Melted 2 | . . 1 1 . . Heat Transferred 2715 | . . 1938 555 . 222 Parts Sabotaged . | . . . . . . Parts Stolen . | . . . . . . Parts Stripped . | . . . . . . Power Chain Reactions 3 | 1 . 2 . . . Alert | -11 -10 -9 -9 -9 -8 ------- Run | Yrd Mat Mat Min Exi Min Peak Influence 383 | 5 170 383 172 . 110 Initial 117 | . 3 71 117 . . Average 130 | 3 71 179 94 . 46 Maximum Alert Level 1 | . . 1 . . . Low Security (%) 82 | 100 100 66 100 . 100 Level 1 17 | . . 33 . . . Level 2 . | . . . . . . Level 3 . | . . . . . . Level 4 . | . . . . . . Level 5 . | . . . . . . High Security . | . . . . . . Max Security . | . . . . . . Squads Dispatched 4 | . 3 1 . . . Investigation 2 | . 2 . . . . Extermination . | . . . . . . Reinforcement 2 | . 1 1 . . . Assault . | . . . . . . Garrison . | . . . . . . Intercept . | . . . . . . Searches Triggered . | . . . . . . Construction Impeded . | . . . . . . Haulers Reinforced . | . . . . . . Active Scanning Responses . | . . . . . . Cargo Convoy Interrupts . | . . . . . . Stealth | -11 -10 -9 -9 -9 -8 --------- Run | Yrd Mat Mat Min Exi Min Distress Signals 5 | . . 5 . . . Communications Jammed . | . . . . . . Distress Signals . | . . . . . . Times Spotted 49 | . 10 30 3 . 6 Peak Tracking Total 6 | . 4 6 3 . 5 Tactical Retreats 3 | . . 2 . . 1 Traps | -11 -10 -9 -9 -9 -8 ------- Run | Yrd Mat Mat Min Exi Min Traps Triggered 1 | . 1 . . . . Indirectly . | . . . . . . Trap Hack Attempts . | . . . . . . Triggered . | . . . . . . Disarmed . | . . . . . . Reprogrammed . | . . . . . . Reused . | . . . . . . Traps Extracted . | . . . . . . Installed . | . . . . . . Triggered . | . . . . . . Machines | -11 -10 -9 -9 -9 -8 ---------- Run | Yrd Mat Mat Min Exi Min Machines Disabled 4 | . . 3 . . 1 Max in Single Turn 1 | . . 1 . . 1 Machines Repaired . | . . . . . . Machines Dismantled . | . . . . . . Machines Sabotaged . | . . . . . . Overloaded Fab Kills . | . . . . . . Hacking | -11 -10 -9 -9 -9 -8 --------- Run | Yrd Mat Mat Min Exi Min Machines Accessed 2 | . 2 . . . . Terminals 2 | . 2 . . . . Fabricators . | . . . . . . Repair Stations . | . . . . . . Recycling Units . | . . . . . . Scanalyzers . | . . . . . . Garrison Access . | . . . . . . Total Hacks 8 | . 8 . . . . Successful 2 | . 2 . . . . Failed 6 | . 6 . . . . Catastrophic 2 | . 2 . . . . Database Lockouts . | . . . . . . Manual 4 | . 4 . . . . Terminals 8 | . 8 . . . . Fabricators . | . . . . . . Repair Stations . | . . . . . . Recycling Units . | . . . . . . Scanalyzers . | . . . . . . Garrison Access . | . . . . . . Terminal Hacks 2 | . 2 . . . . Surveillance Status 1 | . 1 . . . . Investigation Status 1 | . 1 . . . . Fabricator Hacks . | . . . . . . Repair Station Hacks . | . . . . . . Recycling Unit Hacks . | . . . . . . Scanalyzer . | . . . . . . Garrison Access Hacks . | . . . . . . Unauthorized Hacks . | . . . . . . Terminals . | . . . . . . Fabricators . | . . . . . . Repair Stations . | . . . . . . Recycling Units . | . . . . . . Scanalyzers . | . . . . . . Garrison Access . | . . . . . . Data Cores Recovered 1 | . . 1 . . . Used . | . . . . . . Hacking Detections 2 | . 2 . . . . Full Trace Events 1 | . 1 . . . . Feedback Events . | . . . . . . Feedback Blocked . | . . . . . . Robot Schematics Acquired . | . . . . . . Robots Built . | . . . . . . Authchips . | . . . . . . Time . | . . . . . . Total Robot Build Rating . | . . . . . . Part Schematics Acquired . | . . . . . . Parts Built . | . . . . . . Authchips . | . . . . . . Time . | . . . . . . Total Part Build Rating . | . . . . . . Parts Repaired . | . . . . . . Time . | . . . . . . Parts Recycled . | . . . . . . Recycled Matter . | . . . . . . Retrieved Matter . | . . . . . . Retrieved Components . | . . . . . . Parts Scanalyzed . | . . . . . . Part Schematics Acquired . | . . . . . . Parts Damaged . | . . . . . . Bothacking | -11 -10 -9 -9 -9 -8 ------------ Run | Yrd Mat Mat Min Exi Min Used RIF Installer . | . . . . . . Robots Hacked . | . . . . . . Non-combat . | . . . . . . Combat . | . . . . . . Robot Hacks Applied . | . . . . . . Relay Couplers Released . | . . . . . . Fabnet Peak Effective % . | . . . . . . Robots Rewired . | . . . . . . Allies Hacked . | . . . . . . Hacks Repelled . | . . . . . . Allies | -11 -10 -9 -9 -9 -8 -------- Run | Yrd Mat Mat Min Exi Min Total Allies . | . . . . . . Largest Group . | . . . . . . Highest-Rated Group . | . . . . . . Highest-Rated Ally . | . . . . . . Total Orders . | . . . . . . Ally Attacks . | . . . . . . Total Damage . | . . . . . . Kills . | . . . . . . Allies Corrupted . | . . . . . . Allies Melted . | . . . . . . Intel | -11 -10 -9 -9 -9 -8 ------- Run | Yrd Mat Mat Min Exi Min Robot Analysis Total . | . . . . . . Derelict Logs Recovered . | . . . . . . Drone Launches . | . . . . . . Drone Recoveries . | . . . . . . Exploration | -11 -10 -9 -9 -9 -8 ------------- Run | Yrd Mat Mat Min Exi Min Turns Passed 1985 | 64 263 1005 538 32 83 Spaces Moved 1003 | 41 158 430 219 30 125 Core 46 | 14 . 32 . . . Treads 55 | . . 55 . . . Legs 448 | 27 158 263 . . . Wheels . | . . . . . . Hover . | . . . . . . Flight 454 | . . 80 219 30 125 Fastest Speed 37 | 50 120 117 107 107 37 Average Speed 137 | 106 120 165 162 107 37 Slowest Speed 1550 | 190 120 1550 250 107 37 Overloaded Moves . | . . . . . . Propulsion Burnouts . | . . . . . . Robots Hopped . | . . . . . . Cave-ins Triggered . | . . . . . . Exploration Rate (%) 26 | 4 19 25 68 8 37 Regions Visited 5 Branch Regions 3 Pre-discovered Areas . | . . . . . . Known Exits Taken 1 | . 1 . . . . Unknown Exits Taken 4 | 1 . 1 1 1 . Scrap Searched 2 | . . . 1 . 1 Spaces Dug . | . . . . . . Terrain Destroyed 6 | . . 6 . . . Melee . | . . . . . . Projectile . | . . . . . . AOE 6 | . . 6 . . . Terrain Rammed . | . . . . . . Walls Destroyed . | . . . . . . Machines Disabled . | . . . . . . Actions | -11 -10 -9 -9 -9 -8 --------- Run | Yrd Mat Mat Min Exi Min Total 1428 | 59 194 618 378 29 150 Wait 185 | . . 37 137 . 11 Move 998 | 40 157 429 218 29 125 Hop . | . . . . . . Pick Up 48 | 8 5 33 2 . . Fast Attach . | . . . . . . Attach 35 | 6 2 25 2 . . Detach 10 | . . 8 2 . . Swap 1 | . . 1 . . . Drop 28 | 2 2 20 4 . . Fire 117 | 2 28 65 13 . 9 Melee . | . . . . . . Ram 5 | . . . . . 5 Kick 1 | 1 . . . . . Crush . | . . . . . . Escape Stasis . | . . . . . . Rewire . | . . . . . . Trap . | . . . . . . Miscellaneous . | . . . . . . Route ------- -11/Scrapyard -10/Materials -9/Materials -9/Mines (discovered 2 exits: [*Mat] / [*Exi]) -9/Exiles -8/Mines History --------- Turn | Location | Event 35 | -11/Scrapyard | Discovered new exit (range 15) 65 | -11/Scrapyard | Entered Materials 274 | -10/Materials | Discovered new exit (range 16) 314 | -10/Materials | Build established: Mutant 323 | -10/Materials | Identified exit to Materials 328 | -10/Materials | Entered another Materials area 328 | -9/Materials | Evolved 2 slots: Power x2 786 | -9/Materials | Lost 3 parts (2p1w) 1163 | -9/Materials | Core integrity fell below 50% 1199 | -9/Materials | Lost 3 parts (1p1u1w) 1301 | -9/Materials | Discovered new exit (range 12) 1333 | -9/Materials | Entered Mines 1400 | -9/Mines | Met a Derelict bent on vengeance 1851 | -9/Mines | Discovered new exit (range 16) 1864 | -9/Mines | Discovered new exit (range 7) 1871 | -9/Mines | Entered Exiles 1889 | -9/Exiles | Discovered new exit (range 14) 1903 | -9/Exiles | Entered Mines 1939 | -8/Mines | Core integrity fell below 20% 1986 | -8/Mines | Destroyed by G-47 Trooper with Particle Gun Last Messages --------------- 01847_ Dropped Broken Imp. Flight Unit. 01851_ EXIT=FOUND LOCATION=UNKNOWN GOAL=ESCAPE 01889_ EXIT=FOUND LOCATION=UNKNOWN GOAL=ESCAPE 01907_ Imp. Ion Engine destroyed. 01907_ Plasma Injector explodes. 01915_ Searching scrap... 01915_ Found Imp. Heat Sink. 01915_ Found 12 Matter. 01916_ Acquired 12 matter. 01917_ Adv. Beam Cannon destroyed. 01931_ T-07 Excavator is excavating. 01936_ Seismic Survey Station disabled. 01961_ B-36 Bruiser destroyed. 01965_ G-47 Trooper destroyed. 01968_ Adv. Beam Cannon destroyed. 01978_ Slammed into G-47 Trooper. Map ----- +----------------------------------------------------+ | ??????????????# ## #?# ??? | | ???????????????# ## #?# ??? | | ????????????????# ## #?## ??? | | ?????????????????# #??# #??? | | ?????????######### #???# ##?# | | ?????????# ## ##???# ### | | ?????????? ##??# | | ???????????# """ #### | | ????????????# """ ## | | ????????????# """ ## | | ????????????## #### ## | | ????????????## #### #??## ##? | | ????????????# ###??### #???## #?? | | ????????????# ##??????# #????## ##?? | | ???????###### ##??????# #?????####??? | | ??????## ## #??????# #???????????? | | ??????# #??????# #???????????? | | ??????# #??????# #???????????? | | ??????# ##??????# #???????????? | | ??????# # ####????#### #???????????? | | ??????# ####???????# #???????????? | | ??????# #??????????# #???????????? | | ??????# #??????????# ####???????????? | | ???#### ##?????????# #??????????????? | | ???# = ######## #??????????????? | | ???# %* %@ g #??????????????? | | ???# "" """ ###########??????????????? | | ?????""" ""???????????????????????????? | | ?????""" "????????????????????????????? | | ?????? ?????????????????????????????? | | ????????#?????????????????????????????? | | ??????????????????????????????????????? | | ??????????????????????????????????????? | | ??????????????????????????????????????? | | ??????????????????????????????????????? | | ??????????????????????????????????????? | | ??????????????????????????????????????? | | ??????????????????????????????????????? | | | | | | | | | | | | | | | | | | | | | | | | | +----------------------------------------------------+ Best States ------------- Heat Dissipation 38 Energy Generation 22 Energy Capacity 440 Matter Stores 300 Matter Capacity 300 Sight Range 16 Robot Scan Range 14 Terrain Scan Density 10 Evasion (%) 62 Recoil Reduction 2 Offensive Hacking 10 Item Schematics ----------------- None Robot Schematics ------------------ None Fabricated ------------ Nothing Alien Tech Used ----------------- None Achievements -------------- None Challenges ------------ None Game ------ Seed ThermalMyomerField Manual? 0 Play Time 00:22:59 Cumulative 10.7 hours Start 2024.03.31 @ 07:03:00 End 2024.03.31 @ 07:26:37 Sessions 1 Manual Loads 0 Difficulty Rogue Special Mode None Game No. 31 Rogue 31 Adventurer 0 Explorer 0 Win Type - Total 0 Types 0/0/0/0/0/0/0/0/0 Lore% 18 Gallery% 22 Achievement% 22 Wizard Run 0 Options --------- Layout 1 ASCII 0 Keyboard 1 Movement Numpad Keybinds 0 Fullscreen 1 Font 32/SmallcapsGlow Map View 50x35 Zoom Use 0% Tactical HUD 1 Map Filters NONE Filters NONE Steam 1 RUN: eff1360e-2b08-4355-8b2d-260c670c6067